[Event "Champions Chess Tour ChessKid Cup 2023"]
[Site "Chess.com"]
[Date "2023.05.24"]
[Round "52"]
[White "Moussard, Jules"]
[Black "Kollars, Dmitrij"]
[Result "1-0"]
[WhiteElo "2644"]
[BlackElo "2607"]
[ECO "C83"]
[EventDate "2023.??.??"]
[Annotator "pigle"]
[PlyCount "83"]
[Beauty "7564511150113"]
[EventType "team-tourn"]
[TimeControl "900+3"]

1.e4 e5 2.Nf3 Nc6 3.Bb5 a6 4.Ba4 Nf6 5.O-O Nxe4 {The Open Variation is one of Black's best choices in the Ruy Lopez.} 6.d4 b5 7.Bb3 d5 8.dxe5 Be6 9.c3 Be7 10.Bc2 {Only the fourth most popular move and much rarer than the main line 10.Nbd2.} 10...Bg4 11.h3 ( 11.Qe1 {was played in an important GM game in 2023.} 11...Nc5 12.Nd4 Nxd4 13.cxd4 Ne6 14.Qd2 O-O 15.Nc3 Bh5 16.f4 f5 {with a balanced position in Esipenko-Narayanan, Jermuk 2023.} ) 11...Bxf3 $6 {[%c_effect f3;square;f3;type;Inaccuracy;persistent;true] This is a mistake. It's better to keep this bishop with} ( 11...Bh5 {for instance:} 12.g4 Bg6 13.Nd4 {with a complicated game in Caruana-Wei, Wijk aan Zee 2016.} ) 12.gxf3 Nc5 13.b4 $5 {[%c_effect b4;square;b4;type;Interesting;persistent;true] An interesting theoretical novelty.} ( 13.f4 {is also good for White and was played in Polgar-Huebner, Munich 1991.} ) 13...Na4 {A knight on the rim is not always dim. The knight gets ready to go to b6 and protect the important d5-pawn.} ( 13...Ne6 14.f4 {This is just winning as White's center is strong, and the knight is not so well placed on e6. White can also play to attack the d5-pawn.} ) 14.f4 ( 14.Bxa4 $2 {[%c_effect a4;square;a4;type;Mistake;persistent;true] is a horrible positional mistake.} 14...bxa4 15.Qxa4 Qd7 ) 14...Qd7 15.Qf3 ( 15.Re1 $1 {[%c_effect e1;square;e1;type;GreatFind;persistent;true] is more accurate, preparing to advance the f-pawn. White has the advantage after} 15...O-O 16.f5 f6 17.e6 ) 15...O-O ( 15...O-O-O $1 {[%c_effect c8;square;c8;type;GreatFind;persistent;true] is a bold move, but it's actually the computer's first choice.} ) 16.Rd1 Rad8 17.Nd2 f6 {a good move, trying to break White's pawn chain.} 18.Qh5 $1 {[%c_effect h5;square;h5;type;GreatFind;persistent;true] Forcing Black to release the tension.} 18...f5 ( 18...g6 $2 {[%c_effect g6;square;g6;type;Mistake;persistent;true] loses to} 19.Bxg6 hxg6 20.Qxg6+ Kh8 21.Qh5+ Kg8 22.Kh2 Rf7 23.Rg1+ Rg7 24.Rxg7+ Kxg7 25.Ba3 {followed by 26.Rg1.} ) 19.Qf3 Kh8 ( 19...d4 $5 {[%c_effect d4;square;d4;type;Interesting;persistent;true] is a possible way to fight for counterplay.} 20.Bxa4 bxa4 21.Bb2 dxc3 22.Bxc3 Nxb4 {with an equal position.} ) 20.Nf1 d4 $1 {[%c_effect d4;square;d4;type;GreatFind;persistent;true] Black can't wait any longer.} 21.Bxa4 bxa4 22.Be3 Qe6 ( 22...d3 {is also possible:} 23.Rd2 g5 $1 {[%c_effect g5;square;g5;type;GreatFind;persistent;true]} 24.Rad1 Rg8 25.Ng3 Qe6 {with a complicated position.} ) 23.Bxd4 ( 23.cxd4 Nxb4 {is good for Black as the knight goes to the excellent d5-square.} ) 23...Bxb4 $1 {[%c_effect b4;square;b4;type;GreatFind;persistent;true]} ( 23...Nxd4 $2 {[%c_effect d4;square;d4;type;Mistake;persistent;true]} 24.cxd4 {followed by the advance of the d-pawn.} ) 24.Ne3 Be7 {The game is played at a very high level. The position is balanced.} 25.Qe2 Na5 $6 {[%c_effect a5;square;a5;type;Inaccuracy;persistent;true] It turns out we never really know when the knight on the rim is really dim.} ( 25...g5 $1 {[%c_effect g5;square;g5;type;GreatFind;persistent;true] is very good, starting counterplay on the kingside. The computer evaluates the position as equal, but I feel it's easier to play with Black.} ) 26.c4 Nc6 27.Bc3 Bc5 28.Nd5 Ne7 $2 {[%c_effect e7;square;e7;type;Mistake;persistent;true] Now the game goes downhill for Black. The position is still acceptable after} ( 28...Rd7 29.Rd3 Nd8 $1 {[%c_effect d8;square;d8;type;GreatFind;persistent;true]} 30.Rad1 Qg6+ 31.Kh2 Ne6 ) 29.Nxc7 Qc6 30.Ba5 Rxd1+ ( 30...a3 {My computer screams this as the best move, so it's clear something is very wrong with Black's position.} ) 31.Rxd1 Qh6 32.Qf3 {White is a pawn up and has a better pawn structure. The bishop is ready to go back to c3 and the knight to d5. The position is winning, and Moussard plays good moves until the end.} 32...Nc6 33.Bc3 Ne7 34.Rd7 Rb8 35.Kh2 $1 {[%c_effect h2;square;h2;type;GreatFind;persistent;true]} 35...Ng6 36.e6 Bf8 37.Nd5 Nh4 38.Qg3 Re8 39.e7 Bxe7 40.Rxe7 Rxe7 41.Nxe7 a3 42.c5 1-0

[Event "Champions Chess Tour ChessKid Cup 2023"]
[Site "Chess.com"]
[Date "2023.05.25"]
[Round "53"]
[White "Caruana, Fabiano"]
[Black "Moussard, Jules"]
[Result "1-0"]
[WhiteElo "2764"]
[BlackElo "2644"]
[ECO "C42"]
[EventDate "2023.??.??"]
[Annotator "rafael"]
[PlyCount "93"]
[Beauty "7217289890335"]
[EventType "team-tourn"]
[TimeControl "900+3"]

1.e4 e5 2.Nf3 Nf6 3.Nxe5 d6 4.Nf3 Nxe4 5.d4 d5 6.Bd3 Bd6 {This variation of the Petroff Defense is very popular nowadays. Nepomniachtchi had great success with it in last year's Candidates Tournament.} 7.O-O O-O 8.c4 c6 9.Re1 Bf5 10.Qb3 Qd7 11.Be3 ( 11.Nh4 {Caruana played this interesting novelty against Nepomniachtchi in their crucial game of the Candidates Tournament, achieving an excellent position, although the game ended in a draw. Caruana-Nepomniachtchi, Madrid 2022.} ) 11...dxc4 12.Bxc4 b5 {A new and good move. It guarantees the a6-square for the knight.} ( 12...Qc7 13.Nc3 {White probably should search for a better move instead of this one.} 13...Nxc3 14.bxc3 Nd7 {with an equal position in Leko-Anand, Leon (rapid) 2001.} ) ( 12...Na6 13.Ne5 $5 {[%c_effect e5;square;e5;type;Interesting;persistent;true] was played in Vachier Lagrave-Deac, Bucharest 2022.} ) 13.Bd3 Na6 14.a3 $1 {[%c_effect a3;square;a3;type;GreatFind;persistent;true] Avoiding 14...Nb4.} 14...Bg6 ( 14...Rfe8 {is also possible for Black.} ) 15.Nh4 Rfe8 16.Nxg6 hxg6 17.Nc3 Nxc3 18.bxc3 Kf8 $2 {[%c_effect f8;square;f8;type;Mistake;persistent;true] This move is the beginning of Black's problems because it loses an important tempo. Moussard probably was concerned with the tactical idea of Bxg6, but Black also has his own trick.} ( 18...Nc7 $1 {[%c_effect c7;square;c7;type;GreatFind;persistent;true] leads to an equal position. If White captures on g6, then} 19.Bxg6 Bxh2+ $1 {[%c_effect h2;square;h2;type;GreatFind;persistent;true] regains the pawn:} 20.Kxh2 Qd6+ 21.Kg1 Qxg6 {with a good position.} ) 19.a4 Nc7 20.axb5 cxb5 21.Ra5 $1 {[%c_effect a5;square;a5;type;GreatFind;persistent;true] An excellent move, avoiding a7-a5 and paralyzing Black's queenside.} 21...a6 22.g3 $1 {[%c_effect g3;square;g3;type;GreatFind;persistent;true] No hurry.} 22...Rab8 23.Rea1 Qg4 24.Kg2 Qd7 {Black has no active plan. The knight on c7 is tied to the defense of the a6-pawn, and White has a passed pawn and the bishop pair.} 25.Be2 $1 {[%c_effect e2;square;e2;type;GreatFind;persistent;true] Another excellent move: the bishop goes to a better diagonal.} 25...Kg8 26.Bf3 Red8 27.h4 $5 {[%c_effect h4;square;h4;type;Interesting;persistent;true] White's natural plan is to play c4 at some point, but Caruana is patient and improves his position before that. This strategy is ideal when your opponent has no active plan, as it's very difficult and torturous to keep moving the pieces back and forth. Your opponent wants you to do something so he can calculate concrete variations, and when that doesn't happen, they often decide to do something themselves—often worsening their position. That's exactly what will happen in this game.} 27...Bf8 28.Rh1 {Speculating with the advance of the h-pawn.} 28...Qe6 $2 {[%c_effect e6;square;e6;type;Mistake;persistent;true] This hopelessly damages the pawn structure. Black should continue the waiting strategy.} 29.Qxe6 fxe6 ( 29...Nxe6 30.Rxa6 b4 {This attempt doesn't work after the accurate} 31.Rc6 $1 {[%c_effect c6;square;c6;type;GreatFind;persistent;true] and if} 31...bxc3 {White wins a piece after} 32.d5 {The point of the rook on c6 is made clear: the knight cannot go to c5.} ) 30.Bg5 Rdc8 31.Rc1 $1 {[%c_effect c1;square;c1;type;GreatFind;persistent;true] Caruana prepares the decisive advance of the c-pawn.} 31...Bd6 32.c4 bxc4 33.Rxc4 Kf7 34.Rc6 Nb5 {This loses material, but the position is already lost.} ( 34...Bb4 35.Ra4 a5 36.Bg4 $1 {[%c_effect g4;square;g4;type;GreatFind;persistent;true] Black's pieces can barely move.} ) 35.Rxb5 $1 {[%c_effect b5;square;b5;type;GreatFind;persistent;true]} 35...axb5 36.Rxd6 {White has a winning material advantage and powerful bishops. The game is over.} 36...b4 37.Rd7+ Kg8 38.Bf4 Rb6 39.Be5 b3 40.Be4 b2 41.Bxg6 b1=Q 42.Bxb1 Rxb1 43.Rxg7+ Kf8 44.h5 Rcc1 45.h6 Rg1+ 46.Kf3 Rh1 47.h7 1-0

[Event "Champions Chess Tour ChessKid Cup 2023"]
[Site "Chess.com"]
[Date "2023.05.26"]
[Round "4"]
[White "Caruana, Fabiano"]
[Black "Abdusattorov, Nodirbek"]
[Result "0-1"]
[WhiteElo "2764"]
[BlackElo "2731"]
[ECO "B51"]
[EventDate "2023.??.??"]
[Annotator "rafael"]
[PlyCount "124"]
[Beauty "6254948789257"]
[EventType "team-tourn"]
[TimeControl "900+3"]

{[%evp 0,124,32,32,40,44,44,44,53,40,30,18,25,18,18,20,22,27,14,-6,64,66,60,59,60,60,83,68,61,48,45,54,62,70,70,55,54,54,54,38,16,28,31,30,30,25,33,28,81,77,103,110,111,31,70,49,67,21,32,-65,-77,-81,-84,-69,-97,-83,-99,-97,-90,-152,-152,-162,-162,-165,-155,-209,-210,-210,-210,-209,-209,-209,-209,-209,-202,-212,-206,-249,-205,-254,-218,-224,-211,-283,-305,-294,-304,-370,-272,-277,-289,-362,-323,-366,-366,-363,-356,-417,-401,-452,-447,-403,-420,-445,-430,-456,-386,-394,-403,-458,-504,-505,-520,-541,-534,-613,-635]} 
1.e4 c5 2.Nf3 Nc6 3.Bb5 d6 {This line has always been one of my favorites, and I played many games with it. It was also played in the decisive fourth game of the match.} 4.O-O Bd7 5.Re1 Nf6 6.c3 a6 7.Ba4 ( 7.Bf1 {is the most popular move and was played in game four.} 7...Bg4 8.h3 ( 8.d4 {is a critical try.} ) 8...Bxf3 9.Qxf3 g6 10.d3 {and Abdusattorov later won, although not because of the opening.} ) 7...b5 8.Bc2 Rc8 {A rare move. Usually, the choice is between 8...Bg4 or 8...e5.} 9.a4 ( 9.d4 $6 {[%c_effect d4;square;d4;type;Inaccuracy;persistent;true] The idea of Black's previous move becomes clear after this:} 9...cxd4 10.cxd4 e5 11.d5 $6 {[%c_effect d5;square;d5;type;Inaccuracy;persistent;true]} 11...Nb4 12.Bb3 Rxc1 $1 {[%c_effect c1;square;c1;type;GreatFind;persistent;true] This is the point.} 13.Qxc1 Nd3 14.Qe3 Nxe1 15.Qxe1 Be7 {Black has the pair of bishops and an excellent position.} ) 9...g6 10.axb5 axb5 11.d4 cxd4 12.cxd4 Bg4 13.Be3 ( 13.Nc3 {This was played in a critical game that decided the fate of an important tournament in 2004 that some even call a world championship, although I definitely don't agree with that.} 13...b4 $6 {[%c_effect b4;square;b4;type;Inaccuracy;persistent;true] Adams-Kasimdzhanov, Tripoli 2004. Here White can achieve a virtually winning position with 14.d5 $1, for instance:} ( 13...Bg7 {It is better to sacrifice the pawn with this move with some practical compensation after} 14.Nxb5 O-O ) 14.d5 $1 {[%c_effect d5;square;d5;type;GreatFind;persistent;true]} 14...bxc3 15.dxc6 cxb2 ( 15...Rxc6 $2 {[%c_effect c6;square;c6;type;Mistake;persistent;true]} 16.Ba4 ) ( 15...Bg7 16.b4 $1 {[%c_effect b4;square;b4;type;GreatFind;persistent;true]} ) 16.Bxb2 Bg7 17.e5 dxe5 18.Qxd8+ Rxd8 19.c7 Rc8 20.Nxe5 {with a winning initiative.} ) 13...Bg7 14.Nbd2 {Caruana's plan is also good enough for an advantage. White controls the center with the pawns. Isn't this supposed to be good enough to be happy in the opening $2} 14...O-O 15.h3 Bd7 {Better than surrendering the bishop with} ( 15...Bxf3 16.Nxf3 ) 16.d5 {White has other options, and his play in the next moves should be improved since Black manages to equalize.} ( 16.Nb3 ) ( 16.Bb3 ) 16...Nb4 17.Bb1 Ra8 $1 {[%c_effect a8;square;a8;type;GreatFind;persistent;true]} 18.Rxa8 Qxa8 19.Bd4 Rc8 20.Nf1 Qa4 $1 {[%c_effect a4;square;a4;type;GreatFind;persistent;true] An excellent move to exchange queens.} 21.Ne3 Qxd1 22.Rxd1 Bh6 $2 {[%c_effect h6;square;h6;type;Mistake;persistent;true] The start of a strange plan. Exchanging the dark-squared bishop for a knight needs a miracle to be good, although miracles sometimes happen.} ( 22...Na6 23.e5 Ne8 {Despite the lack of space, Black is fine.} ) ( 22...Be8 {with the idea of 23...Nd7 is the most natural.} ) 23.g4 Bxe3 $6 {[%c_effect e3;square;e3;type;Inaccuracy;persistent;true]} ( 23...Bg7 {is objectively better.} ) 24.Bxe3 Nc2 25.Bh6 b4 {In the next moves, White will have many roads to a nearly winning advantage.} 26.e5 ( 26.Nd4 Nxd4 27.Rxd4 {White has the bishop pair and can gradually attack the b-pawn. The position should be winning with precise play.} ) ( 26.Bxc2 $1 {[%c_effect c2;square;c2;type;GreatFind;persistent;true] This is the most accurate. Black's position is very unpleasant after} 26...Rxc2 27.Ra1 {since the pawn cannot be captured:} 27...Nxe4 $2 {[%c_effect e4;square;e4;type;Mistake;persistent;true]} 28.Ra7 Nf6 29.g5 {winning material.} ) 26...dxe5 ( 26...Ne8 {is more stubborn.} ) 27.Nxe5 ( 27.Bxc2 $1 {[%c_effect c2;square;c2;type;GreatFind;persistent;true]} 27...Rxc2 28.Nxe5 {This is winning for White. The dark-squared bishop is too strong.} 28...Bb5 ( 28...Rxb2 29.Ra1 {with a mating attack.} ) 29.Nc6 $1 {[%c_effect c6;square;c6;type;GreatFind;persistent;true] The knight cannot be captured, and the e-pawn falls.} ) 27...Ba4 $1 {[%c_effect a4;square;a4;type;GreatFind;persistent;true]} 28.d6 $2 {[%c_effect d6;square;d6;type;Mistake;persistent;true] White misses the last chance to achieve a big advantage.} ( 28.Nc6 $2 {[%c_effect c6;square;c6;type;Mistake;persistent;true] is refuted by} 28...Nxd5 $1 {[%c_effect d5;square;d5;type;GreatFind;persistent;true]} 29.Rxd5 Bxc6 ) ( 28.Bxc2 $1 {[%c_effect c2;square;c2;type;GreatFind;persistent;true] is the right way.} 28...Bxc2 ( 28...Rxc2 29.Ra1 {wins.} ) 29.Rd4 b3 30.Nc6 Re8 31.f3 $1 {[%c_effect f3;square;f3;type;GreatFind;persistent;true] A strong move, limiting the movements of Black's knight and preparing the path for centralizing the king. Black's pieces are too passive.} ) 28...Na3 $1 {[%c_effect a3;square;a3;type;GreatFind;persistent;true] Abdusattorov fights with all his creativity in a difficult position.} 29.Rd4 $6 {[%c_effect d4;square;d4;type;Inaccuracy;persistent;true]} ( 29.Ba2 $1 {[%c_effect a2;square;a2;type;GreatFind;persistent;true] This difficult move still gives some advantage for White.} 29...b3 $1 {[%c_effect b3;square;b3;type;GreatFind;persistent;true]} ( 29...Bxd1 $2 {[%c_effect d1;square;d1;type;Mistake;persistent;true] is bad:} 30.Bxf7+ Kh8 31.Be6 $1 {[%c_effect e6;square;e6;type;GreatFind;persistent;true]} 31...Ra8 32.dxe7 {White's initiative is decisive. During the game, it helps to know that in the worst-case scenario, you always have perpetual check with Nf7+ and so on. But there's even more, for example:} 32...Nc2 33.Nf7+ Kg8 34.Nd8+ Kh8 35.Bg5 Ne8 36.Bf7 {winning.} ) 30.Bxb3 $1 {[%c_effect b3;square;b3;type;GreatFind;persistent;true]} 30...Bxb3 31.Rd3 exd6 32.Rxb3 dxe5 33.bxa3 {White has a passed distant pawn and a strong bishop. Black still has some suffering to achieve a draw.} ) 29...Nxb1 30.dxe7 Ne8 ( 30...Rc7 {is also possible with a messy position. A possible variation is:} 31.Rxb4 Rxe7 32.Rxa4 Rxe5 33.Kf1 {The b1-knight is trapped.} 33...g5 $1 {[%c_effect g5;square;g5;type;GreatFind;persistent;true] But the h6-bishop is also locked.} 34.Rd4 Nd5 ( 34...Rd5 35.Rxd5 Nxd5 36.Bxg5 Nbc3 37.bxc3 Nxc3 {with an easy draw.} ) 35.Rd1 f6 36.Rxb1 Kf7 {with a likely draw.} ) 31.Rxb4 ( 31.Rd8 $2 {[%c_effect d8;square;d8;type;Mistake;persistent;true] leads nowhere since the knight on e8 is protected.} 31...Rc7 ) 31...Bc2 32.Rd4 ( 32.g5 {with the idea of Bf8 and Ng4 should be good enough for a draw.} ) 32...Rc7 33.Rd8 ( 33.g5 Rxe7 34.f4 {The computer evaluates the position as equal. The knight on b1 is out of play, and it's not easy to bring it back.} ) 33...Rxe7 34.Nd7 f5 $1 {[%c_effect f5;square;f5;type;GreatFind;persistent;true] Black is just in time to create some space for the king.} 35.Nf6+ Kf7 36.Nxh7 g5 $1 {[%c_effect g5;square;g5;type;GreatFind;persistent;true] Brilliant tactical play by Abdusattorov. Here Caruana had to find a very difficult move in order to exchange all of Black's pawns.} 37.Bxg5 $2 {[%c_effect g5;square;g5;type;Mistake;persistent;true]} ( 37.f4 $3 {[%c_effect f4;square;f4;type;Brilliant;persistent;true] The only path for a draw.} 37...fxg4 ( 37...gxf4 38.Bxf4 fxg4 39.Ng5+ Kg6 40.hxg4 ) 38.Nxg5+ Kg6 39.Bf8 $1 {[%c_effect f8;square;f8;type;GreatFind;persistent;true]} 39...Re1+ 40.Kf2 gxh3 $1 {[%c_effect h3;square;h3;type;GreatFind;persistent;true]} 41.Nxh3 {Black has no pawns left, and the knight is still stuck on b1: the draw is not difficult.} ( 41.Kxe1 $4 {[%c_effect e1;square;e1;type;Blunder;persistent;true]} 41...h2 ) ) 37...Re1+ 38.Kh2 ( 38.Kg2 {loses after} 38...fxg4 39.Rd7+ Kg8 40.Nf6+ Nxf6 41.Bxf6 gxh3+ {This capture is made with check; this is an important detail. If} 42.Kxh3 Bf5+ {wins the rook.} ) 38...f4 $1 {[%c_effect f4;square;f4;type;GreatFind;persistent;true] Study-like precision.} ( 38...fxg4 $2 {[%c_effect g4;square;g4;type;Mistake;persistent;true] is no longer enough for a win.} 39.Rd7+ Kg8 40.Nf6+ Nxf6 41.Bxf6 gxh3 {Now this is not a check, and White has time to escape.} 42.Rg7+ Kf8 43.Kxh3 {with a draw.} ) 39.Rd7+ Kg8 40.Bxf4 ( 40.Nf6+ {now loses due to a nice mating net:} 40...Nxf6 41.Bxf6 Be4 {followed by 42...Rh1#.} ) 40...Bxh7 {White still has some drawing chances in this strange endgame. In a club game, this most probably would end in a draw with Black failing to checkmate with a bishop and knight against a lonely king. This, however, is an elite game, and such a failure won't happen.} 41.Kg3 Nf6 42.Rd8+ Kf7 43.Be3 Re2 44.Rb8 Nd2 45.Rb7+ Ke8 46.g5 Nf1+ 47.Kf4 ( 47.Kf3 Rxe3+ $1 {[%c_effect e3;square;e3;type;GreatFind;persistent;true]} 48.fxe3 Be4+ 49.Kf4 Bxb7 50.gxf6 Kf7 {All the pawns will fall sooner or later.} ) 47...Nxe3 48.fxe3 Nd7 49.h4 Bg6 {Two pieces against four pawns is not a material imbalance we see every day. Unfortunately for White, not all the pawns are connected: the only brothers are the h- and g-pawns; the other two are distant relatives.} 50.b4 Ke7 51.Ra7 Rb2 52.Rb7 Bh5 53.e4 Ke6 54.Ke3 Rh2 {The harvest begins.} 55.Ra7 Rxh4 56.Ra6+ Ke7 57.Rh6 Rh3+ 58.Kd4 Bg4 59.b5 ( 59.Rxh3 Bxh3 {As a spectator, I'm frustrated this move didn't happen. I always love to see a bishop and knight endgame played to the end.} ) 59...Rb3 60.Kc4 Rb1 61.Rh7+ Kd6 62.Rh6+ Be6+ {The pawns will fall, and with rooks on the board, the win is even easier.} 0-1